fUSD/lending_fUSD_20260324
["ID","MTS","AMOUNT","RATE_DAILY","PERIOD"]
[408824502,1774313432232,-149.3842711,0.00014473,2]
[408824503,1774313432242,-152.09824163,0.00014473,2]
[408824504,1774313432253,-25.66375837,0.00014473,2]
[408824505,1774313432262,-294.99284928,0.00014473,2]
[408824506,1774313432274,-625.6194234,0.00014473,2]
[408824507,1774313432286,-2669.8145672,0.00014473,2]
[408824508,1774313432295,-304.55195824,0.00014564,2]
[408824509,1774313432304,-500.0,0.00014564,2]
[408824510,1774313432313,-521.14408844,0.00014564,2]
[408824511,1774313432323,-500.0,0.00014564,2]
[408824512,1774313432332,-500.0,0.00014564,2]
[408824513,1774313432341,-197.16387548,0.00014564,2]
[408824514,1774313432351,-173.23242723,0.00014564,2]
[408824515,1774313432362,-517.41,0.00014564,2]
[408824516,1774313432373,-500.0,0.00014564,2]
[408824517,1774313432383,-500.0,0.00014564,2]
[408824518,1774313432392,-500.0,0.00014564,2]
[408824519,1774313432403,-500.0,0.00014564,2]
[408824520,1774313432412,-500.0,0.00014564,2]
[408824521,1774313432421,-500.0,0.00014564,2]
[408824522,1774313432431,-500.0,0.00014564,2]
[408824523,1774313432440,-500.0,0.00014564,2]
[408824524,1774313432449,-500.0,0.00014564,2]
[408824525,1774313432458,-500.0,0.00014564,2]
[408824526,1774313432468,-500.0,0.00014564,2]
[408824527,1774313432478,-500.0,0.00014564,2]
[408824528,1774313432487,-500.0,0.00014564,2]
[408824529,1774313432496,-500.0,0.00014564,2]
[408824530,1774313432506,-500.0,0.00014564,2]
[408824531,1774313432516,-500.0,0.00014564,2]
[408824532,1774313432526,-500.0,0.00014564,2]
[408824533,1774313432535,-180.65596028,0.00014564,2]
[408824534,1774313432545,-186146.94638167,0.00014565,2]
[408824535,1774313432556,-16657.14660448,0.00014565,2]
[408824536,1774313432568,-3298.87374977,0.00014565,2]
[408824537,1774313432592,-924.05253866,0.00014565,2]
[408824538,1774313432603,-621.13759098,0.00014565,2]
[408824539,1774313432614,-935.0,0.00014565,2]
[408824540,1774313432625,-278.617552,0.00014565,2]
[408824541,1774313432644,-6921.15230123,0.00014565,2]
[408824545,1774313438970,-5619.08403573,0.00014473,2]
[408824546,1774313438981,-1611.48163001,0.00014473,2]
[408824547,1774313438991,-1952.43442951,0.00014473,2]
[408824548,1774313439002,-662.78811897,0.00014473,2]
[408824549,1774313439014,-2423.24599463,0.00014473,2]
[408824550,1774313439028,-404.91732955,0.00014473,2]
[408824551,1774313439037,-8696.30478492,0.00014565,2]
[408824556,1774313440211,-4834.33074672,0.00014565,2]
[408824559,1774313440638,-285.5417844,0.00014565,2]
[408824560,1774313440650,-1664567.00056517,0.00014565,2]
[408824561,1774313440659,-500.0,0.00014573,2]
[408824562,1774313440668,-1210.6,0.000146,2]
[408824563,1774313440678,-759.73,0.000146,2]
[408824564,1774313440689,-4000.0,0.000146,5]
[408824565,1774313440699,-12673.95153837,0.00014632,2]
[408824566,1774313440710,-2500.0,0.00014674,2]
[408824567,1774313440720,-500.0,0.00014674,2]
[408824568,1774313440730,-600.0,0.00014674,2]
[408824569,1774313440740,-600.0,0.00014674,2]
[408824571,1774313440750,-8000.0,0.000147,5]
[408824572,1774313440761,-12000.0,0.000148,5]
[408824573,1774313440771,-517.41,0.00014838,2]
[408824574,1774313440782,-16000.0,0.000149,5]
[408824576,1774313440792,-150.0,0.00015,2]
[408824577,1774313440801,-5553.02360164,0.0001501,2]
[408824578,1774313440811,-2191.92962496,0.0001501,2]
[408824579,1774313440820,-3074.4771207,0.00015073,2]
[408824580,1774313440829,-414.84529782,0.00015073,2]
[408824581,1774313440838,-165.36550232,0.00015073,2]
[408824582,1774313440847,-309.5219291,0.00015073,2]
[408824583,1774313440857,-500.0,0.00015109,2]
[408824584,1774313440866,-500.0,0.00015109,2]
[408824585,1774313440875,-500.0,0.00015109,2]
[408824586,1774313440885,-500.0,0.00015109,2]
[408824587,1774313440894,-500.0,0.00015109,2]
[408824588,1774313440903,-517.41,0.00015112,2]
[408824589,1774313440912,-500.0,0.00015173,2]
[408824590,1774313440922,-500.0,0.00015173,2]
[408824591,1774313440931,-500.0,0.00015173,2]
[408824592,1774313440941,-500.0,0.00015173,2]
[408824593,1774313440957,-500.0,0.00015173,2]
[408824594,1774313440966,-500.0,0.00015173,2]
[408824595,1774313440976,-500.0,0.00015173,2]
[408824596,1774313440985,-500.0,0.00015173,2]
[408824597,1774313440995,-500.0,0.00015173,2]
[408824598,1774313441004,-500.0,0.00015173,2]
[408824599,1774313441014,-500.0,0.00015173,2]
[408824600,1774313441023,-500.0,0.00015173,2]
[408824601,1774313441034,-500.0,0.00015173,2]
[408824602,1774313441043,-500.0,0.00015173,2]
[408824603,1774313441054,-500.0,0.00015173,2]
[408824604,1774313441063,-500.0,0.00015173,2]
[408824605,1774313441073,-500.0,0.00015173,2]
[408824606,1774313441083,-500.0,0.00015173,2]
[408824607,1774313441095,-500.0,0.00015173,2]
[408824608,1774313441105,-500.0,0.00015173,2]
[408824609,1774313441114,-500.0,0.00015173,2]
[408824610,1774313441125,-500.0,0.00015173,2]
[408824611,1774313441135,-500.0,0.0001519,2]
[408824612,1774313441144,-500.0,0.0001519,2]
[408824613,1774313441154,-500.0,0.0001519,2]
[408824614,1774313441164,-500.0,0.0001519,2]
[408824615,1774313441174,-500.0,0.0001519,2]
[408824616,1774313441184,-500.0,0.0001519,2]
[408824617,1774313441193,-500.0,0.0001519,2]
[408824618,1774313441203,-516.47340423,0.0001519,2]
[408824619,1774313441214,-450.0,0.00015195,2]
[408824620,1774313441223,-222.51,0.000152,2]
[408824621,1774313441234,-5168.98,0.000152,2]
[408824622,1774313441243,-350.0,0.00015204,2]
[408824623,1774313441254,-150.0,0.00015252,2]
[408824624,1774313441264,-151.70602932,0.00015252,2]
[408824625,1774313441274,-500.0,0.00015252,2]
[408824626,1774313441284,-500.0,0.00015252,2]
[408824627,1774313441294,-500.0,0.00015252,2]
[408824628,1774313441304,-500.0,0.00015252,2]
[408824629,1774313441319,-500.0,0.00015252,2]
[408824630,1774313441329,-500.0,0.00015252,2]
[408824631,1774313441340,-500.0,0.00015252,2]
[408824632,1774313441350,-500.0,0.00015252,2]
[408824633,1774313441361,-500.0,0.00015252,2]
[408824634,1774313441373,-500.0,0.00015252,2]
[408824635,1774313441383,-500.0,0.00015252,2]
[408824636,1774313441393,-500.0,0.00015252,2]
[408824637,1774313441403,-500.0,0.00015252,2]
[408824638,1774313441413,-484.98041623,0.00015252,2]
[408824639,1774313441423,-499.99,0.0001531,2]
[408824640,1774313441433,-1479.14,0.0001531,2]
[408824641,1774313441445,-9999.99,0.0001531,2]
[408824642,1774313441455,-9999.99,0.0001531,2]
[408824643,1774313441465,-9999.99,0.0001531,2]
[408824644,1774313441474,-28386.9044,0.00015321,2]
[408824645,1774313441485,-1000.0,0.00015321,2]
[408824646,1774313441495,-350.0,0.00015365,2]
[408824647,1774313441505,-500.0,0.00015373,2]
[408824648,1774313441515,-500.0,0.00015373,2]
[408824649,1774313441525,-500.0,0.00015373,2]
[408824650,1774313441535,-500.0,0.00015373,2]
[408824651,1774313441546,-500.0,0.00015373,2]
[408824652,1774313441556,-500.0,0.00015373,2]
[408824653,1774313441566,-500.0,0.00015373,2]
[408824654,1774313441575,-517.41,0.00015386,2]
[408824655,1774313441587,-255.0,0.00015429,2]
[408824656,1774313441596,-4000.0,0.00015507,2]
[408824657,1774313441606,-500.0,0.00015521,2]
[408824658,1774313441616,-500.0,0.00015521,2]
[408824659,1774313441626,-500.0,0.00015521,2]
[408824660,1774313441636,-500.0,0.00015521,2]
[408824661,1774313441646,-203.8,0.00015521,2]
[408824662,1774313441655,-500.0,0.00015521,2]
[408824663,1774313441665,-500.0,0.00015521,2]
[408824664,1774313441679,-442.35771877,0.00015521,2]
[408824665,1774313441690,-1386.46,0.00015544,2]
[408824666,1774313441702,-350.0,0.00015596,2]
[408824667,1774313441712,-747.0,0.00015607,2]
[408824668,1774313441722,-747.0,0.00015622,2]
[408824669,1774313441732,-747.0,0.00015635,2]
[408824670,1774313441742,-747.0,0.00015647,2]
[408824671,1774313441754,-517.41,0.0001566,2]
[408824672,1774313441765,-1742.23709816,0.0001568,2]
[408824673,1774313441776,-747.0,0.00015686,2]
[408824674,1774313441787,-747.0,0.000157,2]
[408824675,1774313441797,-20000.0,0.000157,5]
[408824676,1774313441807,-1000.0,0.00015721,2]
[408824677,1774313441817,-1000.0,0.00015721,2]
[408824678,1774313441827,-1000.0,0.00015721,2]
[408824679,1774313441837,-500.0,0.00015721,2]
[408824680,1774313441846,-1000.0,0.00015721,2]
[408824681,1774313441856,-1000.0,0.00015721,2]
[408824682,1774313441869,-417.18554463,0.00015721,2]
[408824683,1774313441879,-1000.0,0.00015721,2]
[408824684,1774313441890,-1000.0,0.00015721,2]
[408824685,1774313441901,-1000.0,0.00015721,2]
[408824686,1774313441911,-1000.0,0.00015721,2]
[408824687,1774313441921,-1000.0,0.00015721,2]
[408824688,1774313441931,-1000.0,0.00015721,2]
[408824689,1774313441942,-1000.0,0.00015721,2]
[408824690,1774313441952,-1000.0,0.00015721,2]
[408824691,1774313441962,-547.2319377,0.00015721,2]
[408824692,1774313441972,-1000.0,0.00015721,2]
[408824693,1774313441982,-1000.0,0.00015721,2]
[408824694,1774313441992,-506.1213296,0.00015721,2]
[408824695,1774313442002,-233.18347913,0.00015721,2]
[408824696,1774313442012,-1000.0,0.00015721,2]
[408824697,1774313442023,-1000.0,0.00015721,2]
[408824698,1774313442034,-747.0,0.00015726,2]
[408824699,1774313442044,-747.0,0.00015768,2]
[408824700,1774313442054,-747.0,0.00015788,2]
[408824701,1774313442067,-500.0,0.00015799,2]
[408824702,1774313442078,-591.07717629,0.00015799,2]
[408824703,1774313442088,-500.0,0.00015799,2]
[408824704,1774313442098,-4000.0,0.000158,5]
[408824705,1774313442108,-2815.0,0.00015833,5]
[408824706,1774313442118,-2251.0,0.00015833,5]
[408824707,1774313442128,-6820.0283618,0.00015844,2]
[408824708,1774313442138,-747.0,0.00015882,2]
[408824709,1774313442148,-2000.0,0.0001589,2]
[408824710,1774313442158,-4000.0,0.00015895,2]
[408824711,1774313442168,-747.0,0.00015897,2]
[408824712,1774313442178,-747.0,0.00015898,2]
[408824713,1774313442188,-157.0,0.000159,2]
[408824714,1774313442197,-158.0,0.000159,2]
[408824719,1774313442874,-4000.0,0.000159,5]
[408824720,1774313442885,-747.0,0.00015903,2]
[408824721,1774313442895,-1000.0,0.00015921,2]
[408824722,1774313442905,-1000.0,0.00015921,2]
[408824723,1774313442914,-1000.0,0.00015921,2]
[408824724,1774313442924,-1000.0,0.00015921,2]
[408824725,1774313442934,-1000.0,0.00015921,2]
[408824726,1774313442944,-1074.83203376,0.00015921,2]
[408824728,1774313442954,-1000.0,0.00015921,2]
[408824729,1774313442964,-517.41412812,0.00015934,2]
[408824730,1774313442974,-191.75414,0.00015943,7]
[408824731,1774313442989,-247.419122,0.00015943,7]
[408824732,1774313442999,-500.0,0.00015998,2]
[408824733,1774313443011,-500.0,0.00015998,2]
[408824737,1774313443023,-158.8898908,0.00015999,2]
[408824739,1774313443033,-427844.4010084,0.00015999,2]
[408824740,1774313443044,-1166.9480361,0.00015999,2]
[408824741,1774313443054,-79700.5209135,0.00015999,2]
[408824742,1774313443064,-178.799556,0.00015999,2]
[408824743,1774313443074,-345.74766936,0.00015999,2]
[408824744,1774313443084,-151.0,0.00015999,2]
[408824745,1774313443094,-151.0,0.00015999,2]
[408824746,1774313443104,-500.0,0.00015999,2]
[408824747,1774313443114,-251.17943694,0.00015999,2]
[408824748,1774313443124,-151.0,0.00015999,2]
[408824749,1774313443134,-151.0,0.00015999,2]
[408824750,1774313443144,-151.0,0.00015999,2]
[408824751,1774313443155,-151.0,0.00015999,2]
[408824752,1774313443165,-151.0,0.00015999,2]
[408824753,1774313443176,-151.0,0.00015999,2]
[408824754,1774313443187,-151.0,0.00015999,2]
[408824755,1774313443197,-151.0,0.00015999,2]
[408824756,1774313443207,-151.0,0.00015999,2]
[408824757,1774313443218,-151.0,0.00015999,2]
[408824758,1774313443228,-2227.6590986,0.00015999,2]
[408824759,1774313443238,-842.718929,0.00015999,2]
[408824760,1774313443249,-842.718929,0.00015999,2]
[408824761,1774313443259,-842.718929,0.00015999,2]
[408824762,1774313443269,-842.718929,0.00015999,2]
[408824763,1774313443279,-218.05716,0.00015999,2]
[408824764,1774313443289,-218.05716,0.00015999,2]
[408824765,1774313443299,-218.05716,0.00015999,2]
[408824766,1774313443309,-218.05716,0.00015999,2]
[408824767,1774313443319,-34335.9777217,0.00015999,2]
[408824768,1774313443329,-736082.46031043,0.00016,2]
[408824769,1774313443339,-437.68874266,0.00016,2]
[408824770,1774313443349,-1288675.4670333,0.00016,2]
[408824771,1774313443372,-6187.30000012,0.00016,2]
[408824776,1774313444282,-12673.95153837,0.0001479,2]
[408824777,1774313444292,-132274.04846177,0.00016,2]
[408824778,1774313444319,-271.96277641,0.00016,2]
[408824779,1774313444424,-70499.99999998,0.00016,2]
[408824781,1774313446122,-1715.73562538,0.00016,2]
[408824782,1774313446224,-594.2752832,0.00016,2]
[408824783,1774313446235,-481.58312198,0.00016,2]
[408824784,1774313446246,-350.731,0.00016,2]
[408824785,1774313446304,-91224.0,0.00016,2]
[408824813,1774314566144,-284.55499088,0.00011842,2]
[408824817,1774314632113,-388.24,0.00011842,2]
[408824818,1774314632125,-109.79500912,0.00011842,2]
[408824819,1774314632134,-269.58574877,0.00012623,2]
[408824820,1774314632144,-166.66,0.00012734,2]
[408824821,1774314632153,-250.0,0.00013,2]
[408824822,1774314632162,-166.66,0.00013002,2]
[408824823,1774314632172,-250.0,0.00013026,2]
[408824824,1774314632181,-166.66,0.0001327,2]
[408824825,1774314632190,-1674.91,0.00013404,2]
[408824826,1774314632200,-150.0,0.000135,2]
[408824827,1774314632209,-166.66,0.00013538,2]
[408824828,1774314632218,-150.0,0.00013652,2]
[408824829,1774314632228,-193.4,0.00013699,2]
[408824830,1774314632237,-327.3,0.00013699,2]
[408824831,1774314632247,-166.66,0.00013807,2]
[408824832,1774314632256,-250.0,0.00013938,2]
[408824833,1774314632266,-508.0,0.00014,2]
[408824834,1774314632275,-378.78,0.00014,2]
[408824836,1774314632284,-258.53458,0.00014,2]
[408824838,1774314632294,-166.66,0.00014075,2]
[408824839,1774314632303,-193.4,0.00014384,2]
[408824840,1774314632312,-300.0,0.00014561,2]
[408824841,1774314632321,-150.0,0.00014562,2]
[408824842,1774314632331,-1200.0,0.00014562,2]
[408824844,1774314632340,-9999.99,0.00014563,2]
[408824845,1774314632349,-9999.99,0.00014563,2]
[408824846,1774314632359,-499.99,0.00014563,2]
[408824847,1774314632368,-9999.99,0.00014563,2]
[408824848,1774314632377,-1479.14,0.00014563,2]
[408824849,1774314632386,-405.37,0.00014563,2]
[408824850,1774314632397,-500.0,0.00014564,2]
[408824851,1774314632406,-500.0,0.00014564,2]
[408824852,1774314632415,-500.0,0.00014564,2]
[408824853,1774314632424,-500.0,0.00014564,2]
[408824854,1774314632434,-500.0,0.00014564,2]
[408824855,1774314632444,-500.0,0.00014564,2]
[408824856,1774314632453,-500.0,0.00014564,2]
[408824857,1774314632463,-500.0,0.00014564,2]
[408824858,1774314632472,-7.85525955,0.00014564,2]
[408824859,1774314632507,-492.14474045,0.00014564,2]
[408824860,1774314632516,-500.0,0.00014564,2]
[408824861,1774314632526,-132.99936762,0.00014564,2]
[408824862,1774314632538,-367.00063238,0.00014564,2]
[408824863,1774314632547,-38.20999438,0.00014564,2]
[408824864,1774314632558,-461.79000562,0.00014564,2]
[408824865,1774314632567,-283.61596066,0.00014564,2]
[408824897,1774314638839,-216.38403934,0.00014564,2]
[408824898,1774314638849,-475.7409718,0.00014564,2]
[408824899,1774314638869,-24.2590282,0.00014564,2]
[408824900,1774314638878,-403.56409801,0.00014564,2]
[408824901,1774314638925,-96.43590199,0.00014564,2]
[408824902,1774314638935,-500.0,0.00014564,2]
[408824903,1774314638945,-593.37771877,0.00014564,2]
[408824904,1774314638954,-500.0,0.00014573,2]
[408824905,1774314638964,-500.0,0.00014573,2]
[408824906,1774314638973,-459.12883712,0.00014573,2]
[408824907,1774314638984,-40.87116288,0.00014573,2]
[408824908,1774314638994,-151.0,0.00014634,2]
[408824909,1774314639003,-151.0,0.00014634,2]
[408824910,1774314639013,-151.0,0.00014634,2]
[408824911,1774314639023,-4100.0,0.000147,5]
[408824912,1774314639032,-7095.03160234,0.0001479,2]
[408824913,1774314639043,-197.1352,0.000148,2]
[408824914,1774314639053,-224.56510536,0.000148,5]
[408824915,1774314639072,-330.47737862,0.000148,5]
[408824919,1774314640469,-350.74079994,0.000148,5]
[408824920,1774314640846,-1125.18647593,0.000148,5]
[408824921,1774314640858,-6169.03024015,0.000148,5]
[408824922,1774314640867,-166.67,0.00014891,2]
[408824923,1774314640876,-727.30188354,0.000149,5]
[408824924,1774314640887,-692.24325866,0.000149,5]
[408824925,1774314640901,-10880.4548578,0.000149,5]
[408824926,1774314640910,-5728.13860188,0.00014907,2]
[408824927,1774314640979,-1033.34419812,0.00014907,2]
[408824928,1774314640989,-3262.7566,0.00014907,2]
[408824929,1774314640998,-195.53316507,0.00014907,2]
[408824931,1774314641034,-38602.04853493,0.00014907,2]
[408824932,1774314641044,-6796.17231734,0.00014949,2]
[408824933,1774314641055,-156.29,0.00014971,2]
[408824935,1774314641064,-167.47929119,0.00014973,2]
[408824937,1774314641072,-500.0,0.00014973,2]
[408824939,1774314641081,-500.0,0.00014973,2]
[408824940,1774314641090,-500.0,0.00014973,2]
[408824942,1774314641099,-230.61280248,0.00014998,2]
[408824943,1774314641108,-151.0,0.00014998,2]
[408824944,1774314641117,-151.0,0.00014998,2]
[408824945,1774314641126,-151.0,0.00014998,2]
[408824946,1774314641135,-151.0,0.00014998,2]
[408824947,1774314641144,-151.0,0.00014998,2]
[408824948,1774314641155,-151.0,0.00014998,2]
[408824949,1774314641164,-151.0,0.00014998,2]
[408824950,1774314641173,-151.0,0.00014998,2]
[408824951,1774314641183,-151.0,0.00014998,2]
[408824952,1774314641191,-101185.3732,0.00015007,2]
[408824953,1774314641200,-150.0,0.00015049,2]
[408824954,1774314641209,-151.70602932,0.00015049,2]
[408824955,1774314641218,-6796.17231734,0.00015055,2]
[408824956,1774314641227,-193.4,0.00015068,2]
[408824957,1774314641236,-500.0,0.00015073,2]
[408824958,1774314641246,-500.0,0.00015073,2]
[408824959,1774314641255,-500.0,0.00015073,2]
[408824960,1774314641265,-500.0,0.00015109,2]
[408824961,1774314641274,-203.8,0.00015109,2]
[408824963,1774314641283,-3141.62348486,0.00015124,2]
[408824964,1774314641292,-6796.17231734,0.0001516,2]
[408824965,1774314641300,-500.0,0.00015199,2]
[408824966,1774314641309,-500.0,0.00015199,2]
[408824967,1774314641318,-516.47340423,0.00015199,2]
[408824968,1774314641327,-500.0,0.00015199,2]
[408824969,1774314641336,-500.0,0.00015199,2]
[408824970,1774314641345,-500.0,0.00015199,2]
[408824971,1774314641354,-500.0,0.00015199,2]
[408824972,1774314641363,-500.0,0.00015199,2]
[408824973,1774314641372,-500.0,0.00015199,2]
[408824974,1774314641381,-500.0,0.00015199,2]
[408824975,1774314641390,-151.0,0.00015199,2]
[408824976,1774314641400,-500.0,0.00015199,2]
[408824977,1774314641409,-500.0,0.00015199,2]
[408824978,1774314641418,-500.0,0.00015199,2]
[408824979,1774314641427,-500.0,0.00015199,2]
[408824980,1774314641436,-250.0,0.00015199,2]
[408824981,1774314641445,-335.32119913,0.00015199,2]
[408824982,1774314641453,-155.77551303,0.000152,2]
[408824983,1774314641462,-167.3220428,0.000152,2]
[408824984,1774314641471,-165.27126098,0.000152,2]
[408824985,1774314641480,-168.50418313,0.000152,2]
[408824986,1774314641488,-28386.9044,0.00015224,2]
[408824987,1774314641497,-2191.92962496,0.00015224,2]
[408824988,1774314641507,-6796.17231734,0.00015266,2]
[408824989,1774314641516,-268.63880736,0.00015272,2]
[408824990,1774314641525,-10259.40032169,0.00015272,2]
[408824991,1774314641534,-505.0,0.00015306,2]
[408824992,1774314641543,-213.18637077,0.00015323,2]
[408824993,1774314641553,-500.0,0.00015323,2]
[408824994,1774314641561,-500.0,0.00015323,2]
[408824995,1774314641570,-500.0,0.00015323,2]
[408824996,1774314641579,-500.0,0.00015323,2]
[408824997,1774314641588,-414.80086191,0.00015323,2]
[408824998,1774314641598,-397.45973365,0.00015323,2]
[408824999,1774314641607,-500.0,0.00015323,2]
[408825000,1774314641616,-500.0,0.00015323,2]
[408825001,1774314641625,-500.0,0.00015323,2]
[408825002,1774314641636,-500.0,0.00015323,2]
[408825003,1774314641645,-500.0,0.00015323,2]
[408825004,1774314641658,-500.0,0.00015323,2]
[408825005,1774314641671,-193.76250543,0.00015323,2]
[408825006,1774314641680,-500.0,0.00015323,2]
[408825007,1774314641689,-500.0,0.00015323,2]
[408825008,1774314641698,-500.0,0.00015323,2]
[408825009,1774314641709,-500.0,0.00015323,2]
[408825010,1774314641718,-500.0,0.00015323,2]
[408825011,1774314641731,-500.0,0.00015323,2]
[408825012,1774314641740,-500.0,0.00015323,2]
[408825013,1774314641750,-500.0,0.00015323,2]
[408825014,1774314641759,-500.0,0.00015323,2]
[408825015,1774314641769,-500.0,0.00015323,2]
[408825016,1774314641779,-500.0,0.00015323,2]
[408825017,1774314641788,-500.0,0.00015323,2]
[408825018,1774314641797,-500.0,0.00015323,2]
[408825019,1774314641806,-500.0,0.00015323,2]
[408825020,1774314641815,-500.0,0.00015323,2]
[408825021,1774314641824,-500.0,0.00015323,2]
[408825022,1774314641833,-500.0,0.00015323,2]
[408825023,1774314641842,-500.0,0.00015323,2]
[408825024,1774314641851,-500.0,0.00015323,2]
[408825025,1774314641860,-500.0,0.00015323,2]
[408825026,1774314641869,-500.0,0.00015323,2]
[408825027,1774314641878,-500.0,0.00015323,2]
[408825028,1774314641887,-500.0,0.00015323,2]
[408825029,1774314641897,-500.0,0.00015323,2]
[408825030,1774314641906,-307.76148678,0.00015323,2]
[408825031,1774314641915,-500.0,0.00015323,2]
[408825032,1774314641927,-500.0,0.00015324,2]
[408825033,1774314641937,-500.0,0.00015324,2]
[408825034,1774314641947,-500.0,0.00015324,2]
[408825035,1774314641956,-500.0,0.00015324,2]
[408825036,1774314641965,-500.0,0.00015324,2]
[408825037,1774314641974,-500.0,0.00015324,2]
[408825038,1774314641984,-500.0,0.00015324,2]
[408825039,1774314641993,-500.0,0.00015324,2]
[408825040,1774314642002,-500.0,0.00015324,2]
[408825041,1774314642011,-500.0,0.00015324,2]
[408825042,1774314642021,-500.0,0.00015324,2]
[408825043,1774314642030,-500.0,0.00015324,2]
[408825044,1774314642040,-1500000.0,0.00015324,2]
[408825045,1774314642049,-10259.40032168,0.00015342,2]
[408825046,1774314642058,-6796.17231734,0.00015372,2]
[408825047,1774314642068,-500.0,0.00015373,2]
[408825048,1774314642078,-500.0,0.00015373,2]
[408825049,1774314642088,-500.0,0.00015373,2]
[408825050,1774314642098,-500.0,0.00015373,2]
[408825051,1774314642107,-500.0,0.00015373,2]
[408825052,1774314642118,-500.0,0.00015373,2]
[408825053,1774314642131,-500.0,0.00015373,2]
[408825054,1774314642141,-500.0,0.00015373,2]
[408825055,1774314642152,-500.0,0.00015373,2]
[408825056,1774314642162,-500.0,0.00015373,2]
[408825057,1774314642172,-500.0,0.00015373,2]
[408825058,1774314642181,-500.0,0.00015373,2]
[408825059,1774314642191,-500.0,0.00015373,2]
[408825060,1774314642200,-500.0,0.00015373,2]
[408825061,1774314642209,-500.0,0.00015373,2]
[408825062,1774314642219,-500.0,0.00015373,2]
[408825063,1774314642228,-500.0,0.00015373,2]
[408825064,1774314642238,-500.0,0.00015373,2]
[408825065,1774314642247,-500.0,0.00015373,2]
[408825066,1774314642257,-500.0,0.00015373,2]
[408825067,1774314642266,-500.0,0.00015373,2]
[408825068,1774314642276,-500.0,0.00015373,2]
[408825069,1774314642285,-500.0,0.00015373,2]
[408825070,1774314642295,-500.0,0.00015373,2]
[408825071,1774314642305,-500.0,0.00015373,2]
[408825072,1774314642317,-500.0,0.00015373,2]
[408825073,1774314642326,-500.0,0.00015373,2]
[408825074,1774314642336,-10259.40032168,0.00015412,2]
[408825075,1774314642345,-6796.17231734,0.00015477,2]
[408825076,1774314642355,-10259.40032168,0.00015481,2]
[408825077,1774314642365,-500.0,0.00015521,2]
[408825078,1774314642375,-1390.0,0.00015531,2]
[408825079,1774314642384,-10259.40032168,0.00015551,2]
[408825080,1774314642394,-6796.17231734,0.00015583,2]
[408825081,1774314642404,-505.0,0.00015584,2]
[408825082,1774314642414,-506.0,0.00015591,2]
[408825083,1774314642423,-506.0,0.00015603,2]
[408825084,1774314642433,-1074.83203376,0.00015621,2]
[408825085,1774314642442,-1000.0,0.00015621,2]
[408825086,1774314642451,-1000.0,0.00015621,2]
[408825087,1774314642461,-10259.40032168,0.00015621,2]
[408825088,1774314642470,-506.0,0.00015631,2]
[408825089,1774314642480,-1742.23709816,0.0001568,2]
[408825090,1774314642489,-299.930038,0.0001568,7]
[408825091,1774314642499,-339.509952,0.0001568,7]
[408825092,1774314642508,-255.0,0.00015683,2]
[408825093,1774314642520,-6796.17231734,0.00015689,2]
[408825094,1774314642529,-10259.40032168,0.00015691,2]
[408825095,1774314642539,-500.0,0.00015699,2]
[408825096,1774314642548,-2000.0,0.000157,2]
[408825097,1774314642558,-168.0,0.00015701,2]
[408825098,1774314642567,-168.0,0.00015716,2]
[408825099,1774314642576,-1390.0,0.00015731,2]